[Event "Titled Tuesday Blitz August 09 Late 2022"]
[White "Hambleton, Aman"]
[Black "Hafiz, Arif Abdul"]
[WhiteFideId "2606577"]
[BlackFideId "7104227"]
[WhiteElo "2538"]
[BlackElo "2198"]
[Result "0-1"]
[Round "08"]
[TimeControl "180+1"]
[Date "2022.08.09"]
[WhiteClock "0:00:02"]
[BlackClock "0:00:05"]

1. d4 {[%clk 0:03:00]}  Nf6 {[%clk 0:02:56]} 2. Bf4 {[%clk 0:02:57]}  c6 {[%clk 0:02:56]} 3. e3 {[%clk 0:02:56]}  d5 {[%clk 0:02:57]} 4. c4 {[%clk 0:02:48]}  e6 {[%clk 0:02:55]} 5. Nc3 {[%clk 0:02:47]}  Bd6 {[%clk 0:02:54]} 6. Nf3 {[%clk 0:01:52]}  Bxf4 {[%clk 0:02:45]} 7. exf4 {[%clk 0:01:53]}  O-O {[%clk 0:02:46]} 8. Bd3 {[%clk 0:01:38]}  dxc4 {[%clk 0:02:38]} 9. Bxc4 {[%clk 0:01:39]}  Qc7 {[%clk 0:02:37]} 10. Qd2 {[%clk 0:01:28]}  Rd8 {[%clk 0:02:36]} 11. Bd3 {[%clk 0:00:51]}  b6 {[%clk 0:02:16]} 12. O-O {[%clk 0:00:50]}  Ba6 {[%clk 0:02:16]} 13. Bxa6 {[%clk 0:00:41]}  Nxa6 {[%clk 0:02:17]} 14. Qe2 {[%clk 0:00:37]}  Nb4 {[%clk 0:02:12]} 15. g3 {[%clk 0:00:37]}  Nbd5 {[%clk 0:02:05]} 16. Rac1 {[%clk 0:00:34]}  Qb7 {[%clk 0:02:04]} 17. Ne5 {[%clk 0:00:27]}  Rac8 {[%clk 0:02:04]} 18. Ne4 {[%clk 0:00:22]}  Nxe4 {[%clk 0:01:35]} 19. Qxe4 {[%clk 0:00:22]}  Nf6 {[%clk 0:01:35]} 20. Qe3 {[%clk 0:00:21]}  Rd5 {[%clk 0:01:32]} 21. Rc4 {[%clk 0:00:20]}  c5 {[%clk 0:01:28]} 22. Rfc1 {[%clk 0:00:19]}  Rcd8 {[%clk 0:01:28]} 23. Nf3 {[%clk 0:00:11]}  h6 {[%clk 0:01:15]} 24. h3 {[%clk 0:00:08]}  Qa8 {[%clk 0:01:08]} 25. a4 {[%clk 0:00:04]}  R5d6 {[%clk 0:01:06]} 26. b3 {[%clk 0:00:03]}  Nd5 {[%clk 0:01:02]} 27. Qe4 {[%clk 0:00:04]}  cxd4 {[%clk 0:00:52]} 28. Nxd4 {[%clk 0:00:04]}  Qb7 {[%clk 0:00:45]} 29. Nc6 {[%clk 0:00:03]}  Nf6 {[%clk 0:00:36]} 30. Qg2 {[%clk 0:00:02]}  Rd1+ {[%clk 0:00:35]} 31. Rxd1 {[%clk 0:00:02]}  Rxd1+ {[%clk 0:00:36]} 32. Kh2 {[%clk 0:00:03]}  Rb1 {[%clk 0:00:18]} 33. Nd4 {[%clk 0:00:02]}  Qxg2+ {[%clk 0:00:15]} 34. Kxg2 {[%clk 0:00:03]}  Ne4 {[%clk 0:00:16]} 35. Rc8+ {[%clk 0:00:03]}  Kh7 {[%clk 0:00:15]} 36. Rc7 {[%clk 0:00:03]}  Rd1 {[%clk 0:00:12]} 37. Nb5 {[%clk 0:00:02]}  f5 {[%clk 0:00:10]} 38. Kf3 {[%clk 0:00:01]}  Rd3+ {[%clk 0:00:10]} 39. Ke2 {[%clk 0:00:02]}  Rxb3 {[%clk 0:00:10]} 40. g4 {[%clk 0:00:02]}  Rb2+ {[%clk 0:00:10]} 41. Ke3 {[%clk 0:00:02]}  Rb3+ {[%clk 0:00:10]} 42. Kd4 {[%clk 0:00:02]}  a6 {[%clk 0:00:10]} 43. Na7 {[%clk 0:00:01]}  Rxh3 {[%clk 0:00:10]} 44. Ke5 {[%clk 0:00:01]}  Nxf2 {[%clk 0:00:09]} 45. gxf5 {[%clk 0:00:01]}  exf5 {[%clk 0:00:10]} 46. Nc6 {[%clk 0:00:01]}  Rc3 {[%clk 0:00:08]} 47. Kd4 {[%clk 0:00:01]}  Rc1 {[%clk 0:00:07]} 48. Ke3 {[%clk 0:00:01]}  Ne4 {[%clk 0:00:06]} 49. Kd3 {[%clk 0:00:01]}  a5 {[%clk 0:00:06]} 50. Ke3 {[%clk 0:00:01]}  h5 {[%clk 0:00:06]} 51. Kf3 {[%clk 0:00:02]}  h4 {[%clk 0:00:07]} 52. Kg2 {[%clk 0:00:02]}  Rc3 {[%clk 0:00:07]} 53. Kh2 {[%clk 0:00:02]}  Nf6 {[%clk 0:00:06]} 54. Rc8 {[%clk 0:00:03]}  Ng4+ {[%clk 0:00:07]} 55. Kg1 {[%clk 0:00:03]}  h3 {[%clk 0:00:07]} 56. Ne7 {[%clk 0:00:04]}  Re3 {[%clk 0:00:06]} 57. Nxf5 {[%clk 0:00:02]}  Re1# {[%clk 0:00:05]} 0-1


[Site "https://www.chess.com"]

[Event "Titled Tuesday Blitz August 09 Late 2022"]
[White "Ibarra Jerez, Jose Carlos"]
[Black "Lobanov, Sergei"]
[WhiteFideId "2226332"]
[BlackFideId "24183750"]
[WhiteElo "2628"]
[BlackElo "2524"]
[Result "0-1"]
[Round "08"]
[TimeControl "180+1"]
[Date "2022.08.09"]
[WhiteClock "0:00:02"]
[BlackClock "0:00:05"]

1. Nf3 {[%clk 0:02:57]}  d5 {[%clk 0:02:58]} 2. g3 {[%clk 0:02:57]}  Nf6 {[%clk 0:02:55]} 3. Bg2 {[%clk 0:02:57]}  c5 {[%clk 0:02:56]} 4. O-O {[%clk 0:02:58]}  Nc6 {[%clk 0:02:57]} 5. d4 {[%clk 0:02:58]}  cxd4 {[%clk 0:02:57]} 6. Nxd4 {[%clk 0:02:59]}  e6 {[%clk 0:02:57]} 7. c4 {[%clk 0:02:52]}  Be7 {[%clk 0:02:56]} 8. Nc3 {[%clk 0:02:49]}  O-O {[%clk 0:02:56]} 9. cxd5 {[%clk 0:02:47]}  Nxd5 {[%clk 0:02:50]} 10. Nxd5 {[%clk 0:02:14]}  exd5 {[%clk 0:02:50]} 11. Be3 {[%clk 0:02:15]}  Bf6 {[%clk 0:02:43]} 12. Rc1 {[%clk 0:02:10]}  Bd7 {[%clk 0:02:14]} 13. Nxc6 {[%clk 0:01:47]}  bxc6 {[%clk 0:02:08]} 14. b3 {[%clk 0:01:41]}  Re8 {[%clk 0:02:04]} 15. Qd2 {[%clk 0:01:38]}  a5 {[%clk 0:02:03]} 16. Rfd1 {[%clk 0:01:32]}  a4 {[%clk 0:01:37]} 17. b4 {[%clk 0:01:31]}  a3 {[%clk 0:01:37]} 18. b5 {[%clk 0:01:20]}  cxb5 {[%clk 0:01:12]} 19. Qxd5 {[%clk 0:01:19]}  Be6 {[%clk 0:01:04]} 20. Qxa8 {[%clk 0:00:35]}  Qxa8 {[%clk 0:01:04]} 21. Bxa8 {[%clk 0:00:35]}  Rxa8 {[%clk 0:01:05]} 22. Bd4 {[%clk 0:00:36]}  Bxa2 {[%clk 0:00:58]} 23. Bxf6 {[%clk 0:00:21]}  gxf6 {[%clk 0:00:59]} 24. Ra1 {[%clk 0:00:19]}  Bc4 {[%clk 0:00:56]} 25. Rdb1 {[%clk 0:00:16]}  Bxe2 {[%clk 0:00:51]} 26. Rb3 {[%clk 0:00:12]}  a2 {[%clk 0:00:50]} 27. f3 {[%clk 0:00:10]}  Bc4 {[%clk 0:00:50]} 28. Rb2 {[%clk 0:00:11]}  Ra3 {[%clk 0:00:48]} 29. Kf2 {[%clk 0:00:11]}  Kf8 {[%clk 0:00:48]} 30. Rd2 {[%clk 0:00:09]}  b4 {[%clk 0:00:27]} 31. Rd4 {[%clk 0:00:07]}  b3 {[%clk 0:00:26]} 32. Rd2 {[%clk 0:00:06]}  Bd5 {[%clk 0:00:22]} 33. Rb2 {[%clk 0:00:06]}  Ra7 {[%clk 0:00:17]} 34. Ke3 {[%clk 0:00:06]}  Rc7 {[%clk 0:00:17]} 35. Kd4 {[%clk 0:00:07]}  Be6 {[%clk 0:00:17]} 36. Kd3 {[%clk 0:00:04]}  h5 {[%clk 0:00:16]} 37. h4 {[%clk 0:00:04]}  Kg7 {[%clk 0:00:15]} 38. Kd4 {[%clk 0:00:03]}  Rc4+ {[%clk 0:00:15]} 39. Kd3 {[%clk 0:00:03]}  Rc5 {[%clk 0:00:15]} 40. Kd4 {[%clk 0:00:04]}  Rd5+ {[%clk 0:00:14]} 41. Ke3 {[%clk 0:00:04]}  Rd7 {[%clk 0:00:13]} 42. Ke4 {[%clk 0:00:04]}  Kg6 {[%clk 0:00:13]} 43. Kf4 {[%clk 0:00:04]}  Rb7 {[%clk 0:00:13]} 44. Ke3 {[%clk 0:00:05]}  Bf5 {[%clk 0:00:13]} 45. Rg1 {[%clk 0:00:05]}  Bb1 {[%clk 0:00:13]} 46. Rgxb1 {[%clk 0:00:04]}  axb1=Q {[%clk 0:00:14]} 47. Rxb1 {[%clk 0:00:05]}  Kf5 {[%clk 0:00:13]} 48. Kd3 {[%clk 0:00:05]}  b2 {[%clk 0:00:10]} 49. Kc3 {[%clk 0:00:05]}  Ke5 {[%clk 0:00:09]} 50. Rxb2 {[%clk 0:00:05]}  Rxb2 {[%clk 0:00:07]} 51. Kxb2 {[%clk 0:00:06]}  f5 {[%clk 0:00:06]} 52. Kc3 {[%clk 0:00:06]}  f4 {[%clk 0:00:06]} 53. g4 {[%clk 0:00:07]}  hxg4 {[%clk 0:00:05]} 54. fxg4 {[%clk 0:00:08]}  f3 {[%clk 0:00:06]} 55. Kd2 {[%clk 0:00:07]}  Kf4 {[%clk 0:00:06]} 56. h5 {[%clk 0:00:06]}  Kg3 {[%clk 0:00:05]} 57. h6 {[%clk 0:00:07]}  f2 {[%clk 0:00:06]} 58. h7 {[%clk 0:00:08]}  f1=Q {[%clk 0:00:06]} 59. h8=Q {[%clk 0:00:08]}  Qf4+ {[%clk 0:00:07]} 60. Kd3 {[%clk 0:00:08]}  Qf3+ {[%clk 0:00:06]} 61. Kd4 {[%clk 0:00:06]}  Qxg4+ {[%clk 0:00:06]} 62. Ke3 {[%clk 0:00:06]}  f5 {[%clk 0:00:06]} 63. Qe5+ {[%clk 0:00:05]}  f4+ {[%clk 0:00:06]} 64. Kd3 {[%clk 0:00:03]}  Qd1+ {[%clk 0:00:06]} 65. Kc4 {[%clk 0:00:03]}  Qf1+ {[%clk 0:00:05]} 66. Kb4 {[%clk 0:00:02]}  Qb1+ {[%clk 0:00:04]} 67. Ka5 {[%clk 0:00:02]}  Qg6 {[%clk 0:00:04]} 68. Qc3+ {[%clk 0:00:01]}  Kg4 {[%clk 0:00:05]} 69. Qe5 {[%clk 0:00:02]}  Qf5 {[%clk 0:00:05]} 0-1


[Site "https://www.chess.com"]

[Event "Titled Tuesday Blitz August 09 Late 2022"]
[White "Izoria, Zviad"]
[Black "Wagner, Dennis"]
[WhiteFideId "13601733"]
[BlackFideId "24650684"]
[WhiteElo "2626"]
[BlackElo "2355"]
[Result "0-1"]
[Round "08"]
[TimeControl "180+1"]
[Date "2022.08.09"]
[WhiteClock "0:00:01"]
[BlackClock "0:00:01"]

1. Nf3 {[%clk 0:03:00]}  d5 {[%clk 0:02:57]} 2. g3 {[%clk 0:02:58]}  Nc6 {[%clk 0:02:56]} 3. d4 {[%clk 0:02:58]}  Bf5 {[%clk 0:02:57]} 4. a3 {[%clk 0:02:46]}  e6 {[%clk 0:02:57]} 5. Bg2 {[%clk 0:02:46]}  Bd6 {[%clk 0:02:57]} 6. O-O {[%clk 0:02:45]}  Nf6 {[%clk 0:02:57]} 7. c4 {[%clk 0:02:41]}  dxc4 {[%clk 0:02:39]} 8. Nbd2 {[%clk 0:02:39]}  Na5 {[%clk 0:02:10]} 9. Nxc4 {[%clk 0:02:23]}  Nxc4 {[%clk 0:02:10]} 10. Qa4+ {[%clk 0:02:23]}  c6 {[%clk 0:02:10]} 11. Qxc4 {[%clk 0:02:24]}  Be4 {[%clk 0:02:09]} 12. Rd1 {[%clk 0:01:56]}  O-O {[%clk 0:02:08]} 13. Bd2 {[%clk 0:01:39]}  a5 {[%clk 0:02:05]} 14. Ne5 {[%clk 0:01:25]}  Bxg2 {[%clk 0:02:01]} 15. Kxg2 {[%clk 0:01:26]}  a4 {[%clk 0:01:53]} 16. f3 {[%clk 0:01:07]}  Qc7 {[%clk 0:01:37]} 17. Nd3 {[%clk 0:01:05]}  Rfd8 {[%clk 0:01:26]} 18. e4 {[%clk 0:01:04]}  Be7 {[%clk 0:01:26]} 19. Rac1 {[%clk 0:01:03]}  Qb6 {[%clk 0:01:25]} 20. Be3 {[%clk 0:00:58]}  h5 {[%clk 0:01:09]} 21. h4 {[%clk 0:00:36]}  Ne8 {[%clk 0:00:57]} 22. Qc2 {[%clk 0:00:07]}  Nd6 {[%clk 0:00:55]} 23. Ne5 {[%clk 0:00:06]}  Nb5 {[%clk 0:00:54]} 24. Nc4 {[%clk 0:00:07]}  Qa6 {[%clk 0:00:52]} 25. Qe2 {[%clk 0:00:06]}  Bf6 {[%clk 0:00:44]} 26. Ne5 {[%clk 0:00:05]}  Bxe5 {[%clk 0:00:14]} 27. dxe5 {[%clk 0:00:06]}  Qa5 {[%clk 0:00:15]} 28. f4 {[%clk 0:00:06]}  Rxd1 {[%clk 0:00:15]} 29. Rxd1 {[%clk 0:00:05]}  Rd8 {[%clk 0:00:15]} 30. Rxd8+ {[%clk 0:00:05]}  Qxd8 {[%clk 0:00:15]} 31. Qxh5 {[%clk 0:00:04]}  Qd3 {[%clk 0:00:14]} 32. Qf3 {[%clk 0:00:04]}  Qc2+ {[%clk 0:00:15]} 33. Qf2 {[%clk 0:00:05]}  Qxe4+ {[%clk 0:00:15]} 34. Qf3 {[%clk 0:00:05]}  Qc2+ {[%clk 0:00:14]} 35. Qf2 {[%clk 0:00:06]}  Qb3 {[%clk 0:00:13]} 36. Qd2 {[%clk 0:00:06]}  g6 {[%clk 0:00:12]} 37. Kf2 {[%clk 0:00:05]}  Kg7 {[%clk 0:00:10]} 38. g4 {[%clk 0:00:04]}  Nc7 {[%clk 0:00:10]} 39. f5 {[%clk 0:00:03]}  gxf5 {[%clk 0:00:05]} 40. Bh6+ {[%clk 0:00:02]}  Kh7 {[%clk 0:00:02]} 41. Qg5 {[%clk 0:00:02]}  Qxb2+ {[%clk 0:00:02]} 42. Kf1 {[%clk 0:00:02]}  Qa1+ {[%clk 0:00:02]} 43. Kf2 {[%clk 0:00:02]}  Qxe5 {[%clk 0:00:02]} 44. Qh5 {[%clk 0:00:01]}  Qd4+ {[%clk 0:00:01]} 0-1


[Site "https://www.chess.com"]

[Event "Titled Tuesday Blitz August 09 Late 2022"]
[White "Kamsky, Gata"]
[Black "Galperin, Platon"]
[WhiteFideId "2000024"]
[BlackFideId "14165414"]
[WhiteElo "2666"]
[BlackElo "2435"]
[Result "1-0"]
[Round "08"]
[TimeControl "180+1"]
[Date "2022.08.09"]
[WhiteClock "0:00:28"]
[BlackClock "0:00:04"]

1. d4 {[%clk 0:03:00]}  e6 {[%clk 0:02:59]} 2. Bf4 {[%clk 0:02:57]}  c5 {[%clk 0:02:45]} 3. e3 {[%clk 0:02:56]}  Qb6 {[%clk 0:02:44]} 4. Na3 {[%clk 0:02:54]}  cxd4 {[%clk 0:02:33]} 5. Nb5 {[%clk 0:02:50]}  dxe3 {[%clk 0:02:17]} 6. Nc7+ {[%clk 0:02:43]}  Kd8 {[%clk 0:02:17]} 7. fxe3 {[%clk 0:02:40]}  e5 {[%clk 0:02:13]} 8. Nxa8 {[%clk 0:02:13]}  Qa5+ {[%clk 0:02:13]} 9. c3 {[%clk 0:02:12]}  exf4 {[%clk 0:02:13]} 10. Qd4 {[%clk 0:01:56]}  fxe3 {[%clk 0:02:04]} 11. Nf3 {[%clk 0:01:55]}  Nc6 {[%clk 0:01:56]} 12. Qf4 {[%clk 0:01:40]}  Ba3 {[%clk 0:01:33]} 13. b4 {[%clk 0:01:26]}  Bxb4 {[%clk 0:01:32]} 14. cxb4 {[%clk 0:01:22]}  Nxb4 {[%clk 0:01:33]} 15. Qg5+ {[%clk 0:01:20]}  Qxg5 {[%clk 0:01:25]} 16. Nxg5 {[%clk 0:01:20]}  Nh6 {[%clk 0:01:22]} 17. Rc1 {[%clk 0:01:12]}  Nxa2 {[%clk 0:01:18]} 18. Ra1 {[%clk 0:01:09]}  Nb4 {[%clk 0:01:08]} 19. Rxa7 {[%clk 0:01:08]}  Re8 {[%clk 0:01:08]} 20. Nb6 {[%clk 0:00:56]}  Kc7 {[%clk 0:00:43]} 21. Nxc8 {[%clk 0:00:52]}  Rxc8 {[%clk 0:00:43]} 22. Ra4 {[%clk 0:00:51]}  Nc6 {[%clk 0:00:36]} 23. Nf3 {[%clk 0:00:50]}  Re8 {[%clk 0:00:29]} 24. Be2 {[%clk 0:00:46]}  Nf5 {[%clk 0:00:25]} 25. O-O {[%clk 0:00:45]}  g6 {[%clk 0:00:21]} 26. Rd1 {[%clk 0:00:41]}  Rd8 {[%clk 0:00:15]} 27. g4 {[%clk 0:00:39]}  Nh6 {[%clk 0:00:12]} 28. h3 {[%clk 0:00:38]}  f5 {[%clk 0:00:12]} 29. Nd4 {[%clk 0:00:36]}  Re8 {[%clk 0:00:09]} 30. Nb5+ {[%clk 0:00:36]}  Kb6 {[%clk 0:00:10]} 31. Nd6 {[%clk 0:00:36]}  Re7 {[%clk 0:00:09]} 32. Ra3 {[%clk 0:00:36]}  f4 {[%clk 0:00:06]} 33. Rb3+ {[%clk 0:00:36]}  Kc7 {[%clk 0:00:05]} 34. Rxb7+ {[%clk 0:00:35]}  Kd8 {[%clk 0:00:06]} 35. g5 {[%clk 0:00:35]}  Nf7 {[%clk 0:00:06]} 36. Nxf7+ {[%clk 0:00:34]}  Rxf7 {[%clk 0:00:07]} 37. Kg2 {[%clk 0:00:32]}  Ne5 {[%clk 0:00:06]} 38. Rf1 {[%clk 0:00:31]}  Rf5 {[%clk 0:00:04]} 39. h4 {[%clk 0:00:30]}  Nc6 {[%clk 0:00:04]} 40. Rb5 {[%clk 0:00:28]} 1-0


[Site "https://www.chess.com"]

[Event "Titled Tuesday Blitz August 09 Late 2022"]
[White "Mahdavi, Reza"]
[Black "Blanco Ronquillo, Humberto L."]
[WhiteFideId "12595926"]
[BlackFideId "3504239"]
[WhiteElo "2226"]
[BlackElo "2425"]
[Result "1-0"]
[Round "08"]
[TimeControl "180+1"]
[Date "2022.08.09"]
[WhiteClock "0:00:07"]
[BlackClock "0:00:02"]

1. e4 {[%clk 0:03:00]}  c5 {[%clk 0:02:58]} 2. d4 {[%clk 0:03:00]}  cxd4 {[%clk 0:02:58]} 3. c3 {[%clk 0:03:01]}  dxc3 {[%clk 0:02:59]} 4. Nxc3 {[%clk 0:03:01]}  Nc6 {[%clk 0:02:59]} 5. Nf3 {[%clk 0:03:00]}  d6 {[%clk 0:03:00]} 6. Bc4 {[%clk 0:03:00]}  e6 {[%clk 0:03:00]} 7. O-O {[%clk 0:02:57]}  Be7 {[%clk 0:03:00]} 8. Qe2 {[%clk 0:02:54]}  Nf6 {[%clk 0:03:01]} 9. Rd1 {[%clk 0:02:53]}  e5 {[%clk 0:03:01]} 10. h3 {[%clk 0:02:51]}  O-O {[%clk 0:03:01]} 11. Be3 {[%clk 0:02:48]}  Be6 {[%clk 0:03:01]} 12. Rac1 {[%clk 0:02:44]}  Bxc4 {[%clk 0:02:59]} 13. Qxc4 {[%clk 0:02:44]}  Rc8 {[%clk 0:02:58]} 14. Qb3 {[%clk 0:02:43]}  Qd7 {[%clk 0:02:41]} 15. Bg5 {[%clk 0:02:41]}  g6 {[%clk 0:02:16]} 16. Rd3 {[%clk 0:01:18]}  Rfd8 {[%clk 0:01:24]} 17. Rcd1 {[%clk 0:01:12]}  Ne8 {[%clk 0:01:23]} 18. Nd5 {[%clk 0:01:07]}  Bxg5 {[%clk 0:01:20]} 19. Nxg5 {[%clk 0:01:08]}  Nd4 {[%clk 0:01:19]} 20. Rxd4 {[%clk 0:01:08]}  exd4 {[%clk 0:01:19]} 21. Rxd4 {[%clk 0:01:03]}  h6 {[%clk 0:01:18]} 22. Nf3 {[%clk 0:00:59]}  b6 {[%clk 0:01:15]} 23. e5 {[%clk 0:00:56]}  Qe6 {[%clk 0:01:14]} 24. Re4 {[%clk 0:00:43]}  dxe5 {[%clk 0:01:11]} 25. Rxe5 {[%clk 0:00:44]}  Rc1+ {[%clk 0:01:09]} 26. Kh2 {[%clk 0:00:44]}  Qd6 {[%clk 0:01:09]} 27. Ne3 {[%clk 0:00:42]}  Rc5 {[%clk 0:01:05]} 28. Ng4 {[%clk 0:00:40]}  Kg7 {[%clk 0:00:55]} 29. Qe3 {[%clk 0:00:38]}  g5 {[%clk 0:00:40]} 30. g3 {[%clk 0:00:35]}  Rxe5 {[%clk 0:00:40]} 31. Ngxe5 {[%clk 0:00:33]}  Nf6 {[%clk 0:00:39]} 32. Kg2 {[%clk 0:00:29]}  Re8 {[%clk 0:00:38]} 33. Qc3 {[%clk 0:00:27]}  Qd5 {[%clk 0:00:38]} 34. Ng4 {[%clk 0:00:26]}  Re6 {[%clk 0:00:36]} 35. Ne3 {[%clk 0:00:20]}  Qe4 {[%clk 0:00:36]} 36. g4 {[%clk 0:00:16]}  Kh7 {[%clk 0:00:12]} 37. Nf5 {[%clk 0:00:17]}  h5 {[%clk 0:00:12]} 38. Kg1 {[%clk 0:00:13]}  Kg6 {[%clk 0:00:12]} 39. Ng3 {[%clk 0:00:06]}  Qb1+ {[%clk 0:00:08]} 40. Kg2 {[%clk 0:00:06]}  hxg4 {[%clk 0:00:08]} 41. hxg4 {[%clk 0:00:07]}  Nxg4 {[%clk 0:00:09]} 42. Qh8 {[%clk 0:00:07]}  Ne3+ {[%clk 0:00:07]} 43. fxe3 {[%clk 0:00:07]}  Qc2+ {[%clk 0:00:07]} 44. Kg1 {[%clk 0:00:06]}  Qd1+ {[%clk 0:00:07]} 45. Kg2 {[%clk 0:00:07]}  Qc2+ {[%clk 0:00:07]} 46. Kh3 {[%clk 0:00:06]}  Rxe3 {[%clk 0:00:06]} 47. Qh5+ {[%clk 0:00:05]}  Kg7 {[%clk 0:00:03]} 48. Qxg5+ {[%clk 0:00:05]}  Qg6 {[%clk 0:00:02]} 49. Qxe3 {[%clk 0:00:06]}  Qe6+ {[%clk 0:00:01]} 50. Qxe6 {[%clk 0:00:07]}  fxe6 {[%clk 0:00:02]} 51. Kg4 {[%clk 0:00:07]} 1-0


[Site "https://www.chess.com"]

[Event "Titled Tuesday Blitz August 09 Late 2022"]
[White "Mardov, Dimitar"]
[Black "Naroditsky, Daniel"]
[WhiteFideId "30919495"]
[BlackFideId "2026961"]
[WhiteElo "2185"]
[BlackElo "2628"]
[Result "0-1"]
[Round "08"]
[TimeControl "180+1"]
[Date "2022.08.09"]
[WhiteClock "0:00:05"]
[BlackClock "0:00:05"]

1. d4 {[%clk 0:03:00]}  Nf6 {[%clk 0:02:59]} 2. c4 {[%clk 0:02:57]}  d6 {[%clk 0:02:53]} 3. Nc3 {[%clk 0:02:55]}  Bf5 {[%clk 0:02:54]} 4. g3 {[%clk 0:02:54]}  c6 {[%clk 0:02:45]} 5. Bg2 {[%clk 0:02:54]}  e5 {[%clk 0:02:46]} 6. Nf3 {[%clk 0:02:53]}  Nbd7 {[%clk 0:02:45]} 7. O-O {[%clk 0:02:52]}  h6 {[%clk 0:02:45]} 8. b3 {[%clk 0:02:48]}  Be7 {[%clk 0:02:43]} 9. Bb2 {[%clk 0:02:47]}  O-O {[%clk 0:02:43]} 10. d5 {[%clk 0:02:43]}  Qc7 {[%clk 0:02:37]} 11. Nd2 {[%clk 0:02:42]}  Bh7 {[%clk 0:02:34]} 12. Rc1 {[%clk 0:02:40]}  a5 {[%clk 0:02:31]} 13. Ba3 {[%clk 0:02:20]}  Rfd8 {[%clk 0:02:20]} 14. Nde4 {[%clk 0:02:11]}  Nxe4 {[%clk 0:02:11]} 15. Nxe4 {[%clk 0:02:12]}  c5 {[%clk 0:02:09]} 16. Nc3 {[%clk 0:02:02]}  Nf6 {[%clk 0:01:55]} 17. Bb2 {[%clk 0:01:57]}  Qd7 {[%clk 0:01:51]} 18. a3 {[%clk 0:01:46]}  Ne8 {[%clk 0:01:43]} 19. e4 {[%clk 0:01:43]}  Nc7 {[%clk 0:01:40]} 20. a4 {[%clk 0:01:43]}  Bg5 {[%clk 0:01:30]} 21. f4 {[%clk 0:01:39]}  exf4 {[%clk 0:01:31]} 22. gxf4 {[%clk 0:01:39]}  Bf6 {[%clk 0:01:32]} 23. e5 {[%clk 0:01:23]}  dxe5 {[%clk 0:01:33]} 24. Ne4 {[%clk 0:01:18]}  Bxe4 {[%clk 0:01:28]} 25. Bxe4 {[%clk 0:01:17]}  Qe7 {[%clk 0:01:22]} 26. Qg4 {[%clk 0:01:08]}  Rd6 {[%clk 0:01:00]} 27. Rce1 {[%clk 0:01:00]}  Kh8 {[%clk 0:00:38]} 28. Bb1 {[%clk 0:00:25]}  e4 {[%clk 0:00:32]} 29. Rxe4 {[%clk 0:00:25]}  Qd8 {[%clk 0:00:28]} 30. Be5 {[%clk 0:00:20]}  Bxe5 {[%clk 0:00:16]} 31. Rxe5 {[%clk 0:00:21]}  Ne8 {[%clk 0:00:17]} 32. Qf5 {[%clk 0:00:12]}  Rg6+ {[%clk 0:00:15]} 33. Kh1 {[%clk 0:00:12]}  Nd6 {[%clk 0:00:16]} 34. Qh3 {[%clk 0:00:09]}  Rf6 {[%clk 0:00:16]} 35. Qg3 {[%clk 0:00:08]}  g6 {[%clk 0:00:12]} 36. f5 {[%clk 0:00:08]}  g5 {[%clk 0:00:12]} 37. h4 {[%clk 0:00:08]}  Qg8 {[%clk 0:00:13]} 38. Re7 {[%clk 0:00:06]}  gxh4 {[%clk 0:00:09]} 39. Qxh4 {[%clk 0:00:07]}  Qg5 {[%clk 0:00:09]} 40. Qxg5 {[%clk 0:00:07]}  hxg5 {[%clk 0:00:10]} 41. Kg2 {[%clk 0:00:07]}  Kg7 {[%clk 0:00:10]} 42. Rh1 {[%clk 0:00:04]}  Re8 {[%clk 0:00:07]} 43. Rhe1 {[%clk 0:00:04]}  Rh8 {[%clk 0:00:05]} 44. Rh1 {[%clk 0:00:04]}  Re8 {[%clk 0:00:05]} 45. Rhe1 {[%clk 0:00:04]}  Rh8 {[%clk 0:00:06]} 46. Rh1 {[%clk 0:00:04]}  Rxh1 {[%clk 0:00:07]} 47. Kxh1 {[%clk 0:00:05]}  b6 {[%clk 0:00:05]} 48. Kg2 {[%clk 0:00:02]}  Nxf5 {[%clk 0:00:05]} 49. Bxf5 {[%clk 0:00:03]}  Rxf5 {[%clk 0:00:05]} 50. d6 {[%clk 0:00:03]}  Rf4 {[%clk 0:00:06]} 51. Rb7 {[%clk 0:00:02]}  Rd4 {[%clk 0:00:04]} 52. Rxb6 {[%clk 0:00:02]}  f5 {[%clk 0:00:05]} 53. Rb5 {[%clk 0:00:01]}  Rd2+ {[%clk 0:00:03]} 54. Kf3 {[%clk 0:00:01]}  Kf6 {[%clk 0:00:03]} 55. Rxc5 {[%clk 0:00:02]}  Rxd6 {[%clk 0:00:03]} 56. Rd5 {[%clk 0:00:02]}  Rxd5 {[%clk 0:00:03]} 57. cxd5 {[%clk 0:00:02]}  Ke5 {[%clk 0:00:04]} 58. Ke3 {[%clk 0:00:03]}  Kxd5 {[%clk 0:00:04]} 59. Kd3 {[%clk 0:00:04]}  Kc5 {[%clk 0:00:05]} 60. Kc3 {[%clk 0:00:05]}  g4 {[%clk 0:00:05]} 0-1


[Site "https://www.chess.com"]

[Event "Titled Tuesday Blitz August 09 Late 2022"]
[White "Navarrete Mendez, Gonzalo Alberto"]
[Black "Csonka, Balazs"]
[WhiteFideId "5106850"]
[BlackFideId "742910"]
[WhiteElo "2261"]
[BlackElo "2404"]
[Result "1/2-1/2"]
[Round "08"]
[TimeControl "180+1"]
[Date "2022.08.09"]
[WhiteClock "0:01:51"]
[BlackClock "0:01:04"]

1. e4 {[%clk 0:03:00]}  e5 {[%clk 0:02:56]} 2. Nf3 {[%clk 0:03:00]}  Nc6 {[%clk 0:02:57]} 3. Bb5 {[%clk 0:03:00]}  Nf6 {[%clk 0:02:55]} 4. Nc3 {[%clk 0:02:58]}  Bc5 {[%clk 0:02:53]} 5. O-O {[%clk 0:02:56]}  O-O {[%clk 0:02:52]} 6. Nxe5 {[%clk 0:02:55]}  Nxe5 {[%clk 0:02:53]} 7. d4 {[%clk 0:02:55]}  Bd6 {[%clk 0:02:53]} 8. dxe5 {[%clk 0:02:55]}  Bxe5 {[%clk 0:02:53]} 9. Bd3 {[%clk 0:02:55]}  Re8 {[%clk 0:02:47]} 10. Bg5 {[%clk 0:02:55]}  h6 {[%clk 0:02:13]} 11. Bh4 {[%clk 0:02:53]}  Qe7 {[%clk 0:01:58]} 12. f4 {[%clk 0:02:50]}  Bxc3 {[%clk 0:01:55]} 13. bxc3 {[%clk 0:02:49]}  Qc5+ {[%clk 0:01:30]} 14. Bf2 {[%clk 0:02:32]}  Qxc3 {[%clk 0:01:30]} 15. e5 {[%clk 0:02:31]}  Nd5 {[%clk 0:01:29]} 16. Qf3 {[%clk 0:02:22]}  c6 {[%clk 0:01:16]} 17. Qe4 {[%clk 0:02:07]}  Nf6 {[%clk 0:01:07]} 18. Qf3 {[%clk 0:02:02]}  Nd5 {[%clk 0:01:05]} 19. Qe4 {[%clk 0:02:01]}  Nf6 {[%clk 0:01:05]} 20. Qf3 {[%clk 0:01:51]}  Nd5 {[%clk 0:01:04]} 1/2-1/2


[Site "https://www.chess.com"]